bitfinex-derivatives/quotes_ETHF0:USTF0_20250627
["timestamp","ask_amount","ask_price","bid_price","bid_amount"]
[1751031500101,3.24199534,2436.2,2435.8,0.8208]
[1751031500303,0.82073,2436.0,2435.9,26.443]
[1751031500516,0.82073,2436.0,2435.9,33.75]
[1751031501108,2.20523,2436.0,2435.9,33.75]
[1751031501417,0.8208,2435.8,2435.7,3.2078]
[1751031501712,0.8208,2435.8,2435.7,36.9378]
[1751031502112,1.3845,2436.0,2435.9,0.82076]
[1751031502310,0.7174,2436.0,2435.9,27.26176]
[1751031503514,0.82065,2436.3,2436.2,0.82066]
[1751031503710,0.82065,2436.3,2436.2,26.44]
[1751031504417,0.82063,2436.3,2436.2,27.26063]
[1751031504613,1.9961,2436.3,2436.2,27.26066]
[1751031505214,2.81673,2436.3,2436.2,26.44]
[1751031506009,1.9961,2436.3,2436.1,3.2078]
[1751031506210,2.81676,2436.3,2436.2,26.436]
[1751031508024,1.9961,2436.3,2436.2,27.25666]
[1751031508216,1.9961,2436.3,2436.2,28.62086]
[1751031510319,2.81673,2436.3,2436.2,27.8002]
[1751031510621,2.05166,2436.2,2435.5,3.2078]
[1751031510825,0.82083,2435.7,2435.6,7.289]
[1751031511324,5.82083,2435.7,2435.6,33.717]
[1751031511522,0.82083,2435.7,2435.6,33.717]
[1751031512324,0.82083,2435.7,2435.6,7.289]
[1751031512518,0.82083,2435.7,2435.6,33.717]
[1751031513220,5.0,2435.7,2435.5,3.2078]
[1751031513524,0.8209,2435.5,2435.4,7.289]
[1751031513716,0.82097,2435.3,2435.2,3.2078]
[1751031513920,0.82097,2435.3,2435.2,36.9238]
[1751031514321,0.82097,2435.3,2435.2,38.383]
[1751031514527,0.82097,2435.3,2435.2,39.204]
[1751031514719,0.82097,2435.3,2435.2,38.383]
[1751031514915,0.674,2435.6,2435.2,38.383]
[1751031515118,0.82086,2435.6,2435.5,3.2078]
[1751031515424,0.82086,2435.6,2435.5,29.6328]
[1751031515925,2.81696,2435.6,2435.5,31.9129]
[1751031516224,2.81696,2435.6,2435.5,31.092]
[1751031516426,2.81696,2435.6,2435.5,31.9129]
[1751031516717,1.9961,2435.6,2435.5,31.9129]
[1751031517316,5.93086,2436.3,2435.7,0.8208]
[1751031517317,0.8208,2435.8,2435.7,0.8208]
[1751031517612,0.8208,2435.8,2435.7,33.713]
[1751031517823,1.9961,2435.8,2435.7,34.53383]
[1751031518024,1.9961,2435.8,2435.7,35.97713]
[1751031518924,1.9961,2435.8,2435.7,43.22616094]
[1751031519226,3.2078,2436.3,2436.2,0.82066]
[1751031519427,4.02844,2436.3,2436.2,33.711]
[1751031519619,0.82064,2436.3,2436.2,33.711]
[1751031519819,2.81674,2436.3,2436.2,33.711]
[1751031520919,1.9961,2436.3,2436.2,37.73946]
[1751031521127,0.82057,2436.5,2436.4,0.82059]
[1751031521326,0.6797,2436.7,2436.4,26.419]
[1751031521626,0.82056,2436.5,2436.4,26.419]
[1751031521827,2.81666,2436.5,2436.4,26.419]
[1751031522023,1.9961,2436.5,2436.4,27.23959]
[1751031522332,2.81666,2436.5,2436.4,27.23959]
[1751031522528,2.81666,2436.5,2436.4,26.419]
[1751031523729,0.82059,2436.4,2436.3,0.82062]
[1751031523926,1.9961,2436.5,2436.3,33.705]
[1751031524127,0.82059,2436.4,2436.3,34.52562]
[1751031524528,2.81668,2436.5,2436.4,0.82059]
[1751031525029,2.81667,2436.5,2436.4,0.82059]
[1751031525224,1.9961,2436.5,2436.4,0.82059]
[1751031525424,0.82059,2436.4,2436.3,33.705]
[1751031526528,1.9961,2436.5,2436.3,33.696]
[1751031526831,0.82059,2436.4,2436.3,33.696]
[1751031527124,2.81669,2436.4,2436.3,7.288]
[1751031527324,10.06572094,2436.4,2436.3,33.695]
[1751031527725,0.82073,2436.0,2435.9,52.4728]
[1751031528027,0.82073,2436.0,2435.9,86.1668]
[1751031528418,0.82073,2436.0,2435.9,59.7608]
[1751031528621,2.81683,2436.0,2435.9,86.1658]
[1751031528924,2.81683,2436.0,2435.9,52.4728]
[1751031529226,2.81683,2436.0,2435.9,86.1648]
[1751031529428,3.50543,2436.0,2435.9,86.1648]
[1751031529829,3.50543,2436.0,2435.9,3.2078]
[1751031530127,0.82083,2435.7,2435.6,7.288]
[1751031530328,0.82097,2435.3,2435.2,3.2078]
[1751031530519,0.82097,2435.3,2435.2,10.4958]
[1751031530721,0.82097,2435.3,2435.2,36.8978]
[1751031530917,0.82097,2435.3,2435.2,37.7188]
[1751031531630,0.7142,2435.7,2435.2,36.8978]
[1751031531826,0.82085,2435.7,2435.2,38.2597]
[1751031532130,0.82081,2435.8,2435.7,0.82081]
[1751031532330,0.82081,2435.8,2435.7,34.48881]
[1751031532830,4.02858,2435.9,2435.8,0.8208]
[1751031533023,0.82078,2435.9,2435.8,2.2343]
[1751031533231,0.7142,2436.3,2435.8,2.23427]
[1751031533531,0.82076,2436.0,2435.9,26.401]
[1751031533732,0.8208,2435.8,2435.7,10.4738]
[1751031533927,2.05208,2435.7,2434.7,3.2078]
[1751031534233,0.821,2435.2,2435.1,0.82102]
[1751031534523,3.2078,2435.4,2435.1,33.665]
[1751031534727,3.2078,2435.4,2435.3,8.07000094]
[1751031535032,4.02862,2435.8,2435.7,0.82083]
[1751031535232,4.02862,2435.8,2435.7,33.666]
[1751031535530,4.05282,2435.8,2435.7,33.666]
[1751031536929,4.05282,2435.8,2435.7,34.48683]
[1751031536930,0.0242,2435.8,2435.7,34.48683]
[1751031537230,0.845,2435.8,2435.7,33.666]
[1751031538231,0.0242,2435.8,2435.7,34.48683]
[1751031539936,0.0242,2435.8,2435.7,39.48683]
[1751031540336,3.2078,2436.2,2436.1,0.8207]
[1751031540531,4.02846,2436.2,2436.1,33.658]
[1751031540930,4.05526,2436.2,2436.1,33.658]
[1751031541931,0.82075,2436.0,2435.9,26.391]
[1751031542132,3.2346,2436.2,2435.9,26.391]
[1751031542133,4.05526,2436.2,2435.9,26.391]
[1751031542332,3.2346,2436.2,2436.1,0.8207]
[1751031542526,3.2078,2436.2,2436.1,34.4767]
[1751031542831,5.1997,2436.2,2436.1,34.4767]
[1751031543233,1.9919,2436.2,2436.1,34.4767]
[1751031545737,2.81256,2436.2,2436.1,34.4767]
[1751031546234,1.9919,2436.2,2436.1,34.4767]
[1751031546432,1.9919,2436.2,2436.1,0.8207]
[1751031546732,1.9919,2436.2,2436.1,27.2037]
[1751031547138,1.9919,2436.2,2436.1,34.45273094]
[1751031547436,1.48044,2436.6,2436.5,0.82056]
[1751031547738,1.48044,2436.6,2436.5,34.46756]
[1751031547937,2.6518,2436.6,2436.5,34.46756]
[1751031548436,1.9919,2436.6,2436.5,34.46756]
[1751031548633,11.29228094,2436.6,2436.0,3.2078]
[1751031548831,0.82061,2436.4,2436.3,0.82062]
[1751031549036,1.9919,2436.6,2436.3,27.19962]
[1751031549336,0.82059,2436.4,2436.3,26.379]
[1751031549728,1.9919,2436.6,2436.0,3.2078]
[1751031549937,0.82068,2436.2,2436.1,34.46368]
[1751031550231,3.2078,2436.4,2436.2,0.82066]
[1751031550232,0.82065,2436.3,2436.2,0.82066]
[1751031550432,0.8207,2436.1,2436.0,3.2078]
[1751031550632,0.8207,2436.1,2436.0,36.8488]
[1751031550930,0.8207,2436.1,2436.0,7.265]
[1751031551132,0.8207,2436.1,2436.0,33.639]
[1751031551535,2.8126,2436.1,2436.0,33.639]
[1751031552130,6.0204,2436.1,2436.0,7.265]
[1751031552339,6.0204,2436.1,2436.0,33.637]
[1751031552532,6.0204,2436.1,2436.0,34.45773]
[1751031552739,5.1997,2436.1,2436.0,34.45773]
[1751031553333,6.0204,2436.1,2436.0,34.45773]
[1751031553533,3.2078,2436.1,2436.0,34.45773]
[1751031553934,4.0285,2436.1,2436.0,34.45773]
[1751031554133,3.2078,2436.1,2436.0,34.45773]
[1751031554739,4.0285,2436.1,2436.0,34.45773]
[1751031555238,3.2078,2436.1,2436.0,34.45773]
[1751031556242,0.82067,2436.2,2436.1,0.8207]
[1751031556535,0.82067,2436.2,2436.1,1.4049]
[1751031557946,0.82067,2436.2,2436.1,2.2256]
[1751031558444,0.82067,2436.2,2436.1,1.4049]
[1751031559142,0.82067,2436.2,2436.1,2.2256]
[1751031559143,1.96423201,2436.2,2436.1,2.2256]
[1751031559444,0.8207,2436.1,2436.0,34.45771]
[1751031559634,7.24903094,2436.2,2435.7,4.5696]
[1751031559840,0.8207,2436.1,2436.0,7.265]
[1751031560040,1.9635503,2436.1,2436.0,33.626]
[1751031560648,3.9554503,2436.1,2436.0,33.626]
[1751031561043,3.9554503,2436.1,2435.8,2.23088]
[1751031561044,0.82076,2435.9,2435.8,1.4101]
[1751031561250,0.82076,2435.9,2435.8,35.0351]
[1751031561650,0.82076,2435.9,2435.8,35.8559]
[1751031561957,0.82076,2435.9,2435.8,35.0351]
[1751031562157,0.82076,2435.9,2435.8,33.625]
[1751031562456,0.8208,2435.8,2435.7,3.2078]
[1751031562659,0.8208,2435.8,2435.7,7.239]
[1751031562957,0.8208,2435.8,2435.7,33.596]
[1751031563158,0.8208,2435.8,2435.7,34.41683]
[1751031563355,0.8208,2435.8,2435.7,7.239]
[1751031563557,0.8208,2435.8,2435.7,33.594]
[1751031564058,0.8208,2435.8,2435.7,7.239]
[1751031564258,0.7031,2436.0,2435.5,1.4101]
[1751031564259,10.00399094,2436.0,2435.5,1.4101]
[1751031564558,0.82086,2435.6,2435.5,1.4101]
[1751031564760,0.82086,2435.6,2435.5,35.0021]
[1751031564961,0.82086,2435.6,2435.5,35.823]
[1751031565260,0.82086,2435.6,2435.5,35.0021]
[1751031565460,0.82086,2435.6,2435.5,35.823]
[1751031566063,0.82086,2435.6,2435.5,8.6491]
[1751031566258,0.82086,2435.6,2435.5,35.0021]
[1751031566454,0.82086,2435.6,2435.5,7.239]
[1751031566764,1.96643388,2435.6,2435.5,33.589]
[1751031566962,1.96643388,2435.6,2435.5,34.4099]
[1751031567261,0.82086,2435.6,2435.5,34.4099]
[1751031567461,1.1456567,2435.6,2435.5,26.35]
[1751031567660,1.96654192,2435.6,2435.5,26.35]
[1751031568050,1.14564192,2435.6,2435.5,27.1709]
[1751031568664,1.96650192,2435.6,2435.5,26.35]
[1751031568861,0.8209,2435.5,2435.4,7.239]
[1751031569057,0.8209,2435.5,2435.4,34.40993]
[1751031569259,0.8209,2435.5,2435.4,33.589]
[1751031569762,1.96645981,2435.5,2435.4,34.40993]
[1751031569965,1.96645981,2435.5,2435.4,7.239]
[1751031570167,1.96645981,2435.5,2435.4,33.586]
[1751031570762,1.96645981,2435.5,2435.4,34.40693]
[1751031570964,1.14555981,2435.5,2435.4,34.40693]
[1751031571266,1.96645981,2435.5,2435.4,34.9532]
[1751031571465,1.96645981,2435.5,2435.4,33.586]
[1751031571665,1.96645981,2435.5,2435.4,34.40693]
[1751031571865,1.96645981,2435.5,2435.4,33.586]
[1751031572969,1.96645981,2435.5,2435.4,34.40693]
[1751031573667,1.96645981,2435.5,2435.4,35.0455]
[1751031574061,1.96645981,2435.5,2435.4,9.51943]
[1751031574264,1.96645981,2435.5,2435.4,35.86143]
[1751031575672,1.14555981,2435.5,2435.4,35.86143]
[1751031577074,1.96645981,2435.5,2435.4,35.86143]
[1751031578578,1.96645981,2435.5,2435.4,35.0405]
[1751031578780,1.96645981,2435.5,2435.4,7.239]
[1751031579075,0.82093,2435.4,2435.3,3.2078]
[1751031579272,0.82103,2435.1,2435.0,8.6371]
[1751031579478,0.82113,2434.8,2434.7,7.24]
[1751031579778,0.82123,2434.5,2434.4,7.24]
[1751031580280,4.02903,2434.5,2434.4,33.569]
[1751031580473,0.82134,2434.2,2434.1,1.3971]
[1751031580678,0.82137,2434.1,2434.0,7.24]
[1751031580980,0.82137,2434.1,2434.0,33.568]
[1751031581476,2.81327,2434.1,2434.0,33.568]
[1751031582871,2.81327,2434.1,2434.0,33.57]
[1751031584485,2.81327,2434.1,2434.0,26.329]
[1751031584668,0.8214,2434.0,2433.9,7.242]
[1751031584872,0.8214,2434.0,2433.9,33.568]
[1751031585072,1.5181,2434.0,2433.9,33.568]
[1751031585473,1.9919,2434.1,2434.0,0.8214]
[1751031585679,2.81328,2434.1,2434.0,1.4633]
[1751031586281,0.82147,2433.8,2433.7,7.243]
[1751031586682,0.82147,2433.8,2433.7,33.569]
[1751031587582,1.9919,2434.1,2433.7,34.9328]
[1751031587779,1.9919,2434.1,2433.8,1.3638]
[1751031587980,3.2078,2434.3,2433.9,26.324]
[1751031588182,2.05335,2434.2,2433.6,3.9373]
[1751031588385,0.8214,2434.0,2433.9,7.243]
[1751031588580,0.8214,2434.0,2433.9,33.566]
[1751031588881,4.0292,2434.0,2433.9,26.323]
[1751031589276,0.8214,2434.0,2433.9,26.323]
[1751031589974,4.0292,2434.0,2433.9,26.323]
[1751031590682,0.82147,2433.8,2433.7,2.1853]
[1751031590870,0.82147,2433.9,2433.7,28.5063]
[1751031591070,3.2078,2433.6,2432.2,4.09712206]
[1751031591275,0.82208,2432.0,2431.9,5.49712206]
[1751031591476,4.02988,2432.0,2431.9,1.4]
[1751031592880,6.02178,2432.0,2431.9,1.4]
[1751031593086,2.81398,2432.0,2431.9,1.4]
[1751031593278,2.81398,2432.0,2431.9,34.934]
[1751031597886,1.9919,2432.0,2431.9,35.75611]
[1751031600287,2.81398,2432.0,2431.9,35.75611]
[1751031600686,2.81398,2432.0,2431.9,34.934]
[1751031601580,10.06301094,2432.0,2431.9,34.934]
[1751031601888,0.82215,2431.8,2431.7,3.913]
[1751031602192,0.82218,2431.7,2431.6,7.216]
[1751031602392,8.07121094,2431.7,2431.6,33.549]
[1751031602590,0.82228,2431.4,2431.3,7.216]
[1751031602787,0.82228,2431.4,2431.0,10.4238]
[1751031602788,10.45683094,2431.4,2431.0,10.4238]
[1751031602990,10.45683094,2431.4,2430.0,2.05686]
[1751031602991,0.82252,2430.7,2430.6,3.2078]
[1751031603289,0.82252,2430.7,2429.8,7.216]
[1751031603290,2.0566,2430.4,2429.8,7.216]
[1751031603592,3.2078,2429.9,2429.7,26.332]
[1751031603790,11.27964094,2429.9,2429.7,26.332]
[1751031604095,10.45683094,2429.9,2429.8,1.353]
[1751031604289,3.2078,2429.9,2429.8,1.353]
[1751031604493,3.2078,2429.9,2429.8,2.17582]
[1751031604795,3.2078,2430.2,2429.8,1.353]
[1751031604986,4.0305,2430.2,2429.9,0.82279]
[1751031605192,3.2078,2430.2,2430.0,1.353]
[1751031605691,3.2078,2430.2,2430.0,28.51175]
[1751031605891,3.2078,2430.2,2430.0,27.689]
[1751031605892,1.9919,2430.1,2430.0,27.689]
[1751031606094,1.9919,2430.1,2430.0,28.51176]
[1751031606486,1.9919,2430.1,2430.0,27.689]
[1751031607395,1.9919,2430.1,2430.0,28.51176]
[1751031607594,1.9919,2430.1,2430.0,1.353]
[1751031607795,1.9919,2430.1,2429.9,7.218]
[1751031608096,0.82276,2430.0,2429.9,33.56]
[1751031608298,0.82279,2429.9,2429.7,1.4384]
[1751031608592,0.82279,2429.9,2429.8,26.342]
[1751031608794,1.9919,2430.0,2429.8,26.342]
[1751031609094,1.9919,2430.0,2429.8,28.62632]
[1751031609304,2.81466,2430.0,2429.8,27.8035]
[1751031609697,1.9919,2430.0,2429.9,0.82279]
[1751031609896,3.2078,2430.2,2430.1,0.82272]
[1751031610497,3.684,2430.2,2430.1,0.82272]
[1751031611600,0.4762,2430.2,2430.1,34.38972]
[1751031611894,3.684,2430.2,2430.1,34.38972]
[1751031612896,4.50669,2430.2,2430.1,7.221]
[1751031613088,3.684,2430.2,2429.9,27.8065]
[1751031613289,0.82276,2430.0,2429.9,1.4615]
[1751031613486,0.82279,2429.9,2429.8,33.566]
[1751031613691,4.03059,2429.9,2429.8,7.222]
[1751031613897,4.03059,2429.9,2429.8,33.569]
[1751031614301,3.2078,2429.9,2429.8,34.39182]
[1751031614696,4.03059,2429.9,2429.8,33.569]
[1751031615394,3.2078,2429.9,2429.8,34.39182]
[1751031615703,3.684,2430.2,2429.8,33.569]
[1751031615894,4.03059,2429.9,2429.8,33.569]
[1751031616194,3.2078,2429.9,2428.8,3.2078]
[1751031616397,3.2078,2429.4,2429.2,0.823]
[1751031616587,3.2078,2429.4,2429.2,26.349]
[1751031616902,3.2078,2429.4,2429.0,1.416]
[1751031616903,4.03076,2429.4,2429.3,26.349]
[1751031617097,3.2078,2429.4,2429.3,0.82299]
[1751031617589,5.1997,2429.4,2429.3,2.18909]
[1751031618200,5.1997,2429.4,2429.3,2.21477945]
[1751031618500,1.9919,2429.4,2429.3,9.43777945]
[1751031618698,1.9919,2429.4,2429.3,10.12317945]
[1751031619100,4.03068,2429.7,2429.5,0.8229]
[1751031619303,4.03068,2429.7,2429.6,27.7171]
[1751031619804,6.02258,2429.7,2429.6,0.04323919]
[1751031620295,5.1997,2429.7,2429.6,0.86612919]
[1751031620598,5.1997,2429.7,2429.6,0.82289]
[1751031620807,6.02256,2429.7,2429.6,0.88367893]
[1751031621193,6.02256,2429.7,2429.6,0.06078893]
[1751031621404,15.44831073,2429.7,2429.6,0.06078893]
[1751031621804,0.74462133,2429.4,2429.3,7.224]
[1751031621994,0.82295,2429.5,2429.3,33.575]
[1751031622201,1.3898,2429.6,2429.4,0.82295]
[1751031622401,0.82296,2429.4,2429.3,33.575]
[1751031622604,0.82296,2429.4,2428.7,2.77416]
[1751031622605,2.05757,2429.2,2427.9,3.2078]
[1751031622904,3.19025026,2428.5,2428.4,0.8233]
[1751031623201,2.05766,2429.1,2428.0,36.4418]
[1751031623202,3.2078,2428.8,2428.1,40.8]
[1751031623394,3.2078,2428.8,2428.2,1.4623]
[1751031623593,0.8232,2428.7,2428.4,0.82327]
[1751031623797,3.2078,2428.8,2428.4,0.82327]
[1751031623798,0.82323,2428.6,2428.5,1.3962]
[1751031623994,3.2078,2428.8,2428.4,33.564]
[1751031624311,3.2078,2428.8,2428.4,35.78348]
[1751031624507,11.50142639,2428.8,2428.4,35.78348]
[1751031624707,0.82326,2428.5,2428.4,34.9602]
[1751031625003,11.50142639,2428.8,2428.4,34.97297944]
[1751031625306,11.50142639,2428.8,2428.4,0.01277944]
[1751031625307,12.32468639,2428.5,2428.4,0.01277944]
[1751031625497,0.81079056,2427.6,2427.3,3.2078]
[1751031625807,8.29362639,2427.6,2427.3,3.2078]
[1751031625994,3.2078,2427.9,2427.4,1.3962]
[1751031626195,0.8235,2427.8,2427.5,0.82359]
[1751031626406,10.50573404,2427.9,2427.4,34.9652]
[1751031626601,0.82354,2427.7,2427.4,34.9652]
[1751031626904,8.12152404,2427.6,2427.3,4.03146]
[1751031627204,10.11340404,2427.6,2427.4,0.01277944]
[1751031627606,9.28983404,2427.6,2427.4,0.01277944]
[1751031628001,9.28983404,2427.6,2427.5,0.8236]
[1751031628002,1.9919,2427.6,2427.5,0.8236]
[1751031628198,3.2078,2427.9,2427.8,0.8235]
[1751031628600,4.03116,2428.3,2428.1,0.8234]
[1751031628807,3.2078,2428.3,2428.2,0.82337]
[1751031629010,4.03113,2428.3,2428.0,0.82341]
[1751031629208,3.2078,2428.3,2428.1,0.03833832]
[1751031629601,3.2078,2428.3,2428.1,0.86173832]
[1751031629906,0.82337,2428.2,2428.1,0.03833832]
[1751031630703,3.2078,2428.3,2428.2,0.82337]
[1751031631300,3.2078,2428.3,2428.2,2.28087]
[1751031631512,3.2078,2428.6,2428.2,2.28087]
[1751031631826,3.2078,2428.6,2428.1,0.05111776]
[1751031631827,3.2078,2428.6,2428.5,0.82326]
[1751031632315,3.2078,2428.6,2428.5,2.28076]
[1751031632612,3.2078,2428.6,2428.5,2.36573698]
[1751031633708,3.2078,2428.6,2428.5,2.38266659]
[1751031634216,3.2078,2428.6,2428.5,2.3995962]
[1751031634408,3.9493,2428.6,2428.5,2.3995962]
[1751031636408,3.9493,2428.6,2428.5,2.41652581]
[1751031637407,3.9493,2428.6,2428.5,2.43345542]
[1751031638414,0.7415,2428.6,2428.5,2.43345542]
[1751031638615,1.87540818,2428.6,2428.5,2.43345542]
[1751031638913,1.87544157,2428.6,2428.5,2.43345542]
[1751031639317,0.7415,2428.6,2428.5,2.43345542]
[1751031639908,1.87533525,2428.6,2428.5,2.43345542]
[1751031640110,1.87533525,2428.6,2428.5,35.18919542]
[1751031640111,2.69856525,2428.6,2428.5,35.18919542]
[1751031640407,1.87533525,2428.6,2428.5,36.01245542]
[1751031641214,2.69856525,2428.6,2428.5,1.61019542]
[1751031641513,2.69856525,2428.6,2428.5,26.51269542]
[1751031642417,2.69856525,2428.6,2428.5,0.15269542]
[1751031642608,3.35886525,2428.6,2428.5,0.15269542]
[1751031642913,4.80626525,2428.6,2428.5,0.15269542]
[1751031645506,4.80626525,2428.6,2427.7,5.2845]
[1751031645507,8.98303525,2428.6,2427.7,5.2845]
[1751031645707,0.82345,2428.0,2427.8,33.577]
[1751031646009,0.82347,2427.9,2427.8,35.78678]
[1751031646210,0.82346,2428.0,2427.9,0.82346]
[1751031646411,0.82343,2428.0,2427.9,1.3863]
[1751031646911,1.13872259,2428.0,2427.9,2.20977]
[1751031647212,1.96215259,2428.0,2427.9,2.20977]
[1751031647612,1.96215259,2428.0,2427.9,1.3863]
[1751031648311,1.96215259,2428.0,2427.9,2.20977]
[1751031648909,0.82347,2427.9,2427.8,33.577]
[1751031649109,0.82347,2427.9,2427.8,34.9655]
[1751031649308,0.82342,2428.1,2428.0,0.82342]
[1751031649507,1.96013018,2428.1,2428.0,0.82342]
[1751031649709,1.13671018,2428.1,2428.0,0.82342]
[1751031650109,0.278,2428.1,2428.0,4.03122]
[1751031650311,3.2078,2428.5,2428.0,3.2078]
[1751031650510,1.13718214,2428.4,2428.3,0.82331]
[1751031650706,1.13718214,2428.4,2428.3,8.04231]
[1751031651112,2.85278214,2428.4,2428.3,11.25011]
[1751031651609,3.67608214,2428.4,2428.3,11.25011]
[1751031652008,0.82333,2428.3,2428.2,0.82334]
[1751031652208,1.13718214,2428.3,2428.2,0.82334]
[1751031652407,1.13718214,2428.3,2428.2,34.39834]
[1751031652808,1.96051214,2428.3,2428.2,34.39834]
[1751031653013,1.13718214,2428.3,2428.2,34.39834]
[1751031653413,1.96051214,2428.3,2428.2,34.39837]
[1751031653608,1.13718214,2428.3,2428.2,34.39837]
[1751031656012,1.13718214,2428.3,2428.2,35.11627]
[1751031657715,1.7156,2428.4,2428.3,0.82333]
[1751031657914,2.85394157,2428.4,2428.3,2.21336804]
[1751031659914,2.85394157,2428.4,2428.3,6.09696804]
[1751031660108,2.85394157,2428.4,2428.3,6.41913746]
[1751031660314,1.7156,2428.4,2428.3,6.41913746]
[1751031661023,0.8439,2428.4,2428.3,11.41913746]
[1751031661216,2.42007943,2429.1,2429.0,0.82309]
[1751031661425,2.42007943,2429.3,2429.2,0.82303]
[1751031661723,1.13450166,2429.3,2429.2,28.61013]
[1751031661914,1.13450166,2429.3,2429.2,28.62346804]
[1751031662115,1.13450166,2429.3,2429.2,40.91579111]
[1751031663033,1.13450166,2429.3,2429.2,40.93230916]
[1751031663319,1.13450166,2429.3,2429.2,2.29198609]
[1751031663518,1.13450166,2429.3,2429.2,35.84898609]
[1751031665117,1.13450166,2429.3,2429.2,43.14130916]
[1751031665822,1.13450166,2429.3,2429.2,48.14130916]
[1751031666418,1.13450166,2429.3,2429.2,33.63798609]
[1751031666618,1.99,2429.7,2429.3,0.82297]
[1751031666826,0.82294,2429.5,2429.4,27.16196]
[1751031667018,0.82294,2429.5,2429.4,26.339]
[1751031667322,2.81294,2429.5,2429.4,26.36885609]
[1751031667719,2.81294,2429.5,2429.4,0.02985609]
[1751031667924,2.81294,2429.5,2429.4,26.36385609]
[1751031668717,2.81294,2429.5,2429.4,26.38037414]
[1751031669123,10.77016307,2429.5,2429.4,26.38037414]
[1751031669925,3.47784,2429.5,2429.4,26.39401433]
[1751031670326,3.47784,2429.5,2429.4,26.40765452]
[1751031671723,1.99,2429.5,2429.4,27.23061452]
[1751031671924,1.99,2429.5,2429.4,28.62391452]
[1751031672224,1.99,2429.5,2429.4,28.63755471]
[1751031672926,1.99,2429.5,2429.4,28.6511949]
[1751031673420,0.7259,2430.2,2429.6,2.05723]
[1751031673618,5.62787943,2430.8,2430.1,3.2078]
[1751031673826,2.52302673,2430.7,2430.2,34.9002]
[1751031674027,1.13132673,2430.6,2430.5,0.82256]
[1751031674227,0.1606,2430.6,2430.5,27.14756]
[1751031674623,0.1606,2430.6,2430.5,67.94756]
[1751031674829,0.0784,2430.8,2430.5,68.4912]
[1751031675026,0.0784,2430.8,2430.7,0.82252]
[1751031675235,0.90091,2430.8,2430.7,26.324]
[1751031675529,0.82252,2430.7,2430.6,26.45221528]
[1751031675729,2.27122,2430.7,2430.6,26.45221528]
[1751031675927,2.27122,2430.7,2430.6,26.46844933]
[1751031676321,10.50012307,2431.3,2430.6,26.46844933]
[1751031676518,4.03024,2431.0,2430.7,7.207]
[1751031676832,2.81245,2430.9,2430.8,26.318]
[1751031677027,2.81245,2430.9,2430.8,26.47868338]
[1751031677929,2.81245,2430.9,2430.8,26.49491743]
[1751031678132,1.99,2430.9,2430.8,27.31739743]
[1751031678328,1.99,2430.9,2430.8,28.75759743]
[1751031678929,1.99,2430.9,2430.8,28.58068]
[1751031679132,1.99,2430.9,2430.8,28.77383148]
[1751031680033,1.99,2430.9,2430.8,28.79006553]
[1751031680228,2.81245,2430.9,2430.8,27.96758553]
[1751031680930,2.81245,2430.9,2430.8,27.7582]
[1751031681235,2.81245,2430.9,2430.8,27.98381958]
[1751031681632,1.99,2430.9,2430.8,28.80629958]
[1751031681834,2.81245,2430.9,2430.8,28.80629958]
[1751031682037,1.99,2430.9,2430.8,28.82021902]
[1751031682532,1.99,2430.9,2430.8,28.83413846]
[1751031682838,1.99,2430.9,2430.8,33.83413846]
[1751031683232,3.2078,2431.3,2431.2,0.82235]
[1751031683429,3.2078,2431.3,2431.2,33.51]
[1751031683632,0.7228,2431.4,2431.3,0.82232]
[1751031683936,3.2078,2431.7,2431.3,1.7202779]
[1751031684132,1.99,2431.4,2431.3,5.7503979]
[1751031684343,1.99,2431.4,2431.3,32.0553979]
[1751031684940,1.99,2431.4,2431.3,32.06931734]
[1751031685141,2.81228,2431.4,2431.3,31.24699734]
[1751031685442,2.81228,2431.4,2431.3,36.97609734]
[1751031685831,0.82228,2431.4,2431.3,36.97609734]
[1751031686031,0.82228,2431.4,2431.3,36.99001678]
[1751031686434,0.82228,2431.4,2431.3,33.78221678]
[1751031686629,0.82228,2431.4,2431.3,33.78021678]
[1751031687040,2.81228,2431.4,2431.3,33.78021678]
[1751031688839,3.2078,2431.6,2431.3,33.78021678]
[1751031688840,0.82227,2431.5,2431.3,36.03463678]
[1751031689138,0.82227,2431.5,2431.4,1.11749678]
[1751031689139,1.99,2431.5,2431.4,1.11749678]
[1751031689335,1.99,2431.5,2431.4,2.54959678]
[1751031691339,2.81225,2431.5,2431.4,42.52731678]
[1751031691847,2.81225,2431.5,2431.4,1.72731678]
[1751031692738,10.10457307,2431.5,2431.4,0.29521678]
[1751031692936,10.10457307,2431.5,2431.4,7.48021678]
[1751031693143,0.82235,2431.2,2431.1,7.185]
[1751031693340,0.82235,2431.2,2431.1,33.472]
[1751031693938,1.50845,2431.2,2431.1,33.472]
[1751031695837,13.80077307,2431.2,2431.1,7.185]
[1751031696037,15.17497307,2431.2,2431.1,33.468]
[1751031697046,16.3047585,2431.2,2431.1,33.468]
[1751031698447,18.2947585,2431.2,2431.1,33.468]
[1751031699440,13.2947585,2431.2,2431.1,33.468]
[1751031699841,0.82248,2430.8,2430.7,56.559]
[1751031700049,0.82248,2430.8,2430.7,33.463]
[1751031700250,1.9551322,2430.8,2430.7,33.463]
[1751031700948,1.9551322,2430.8,2430.7,7.185]
[1751031701148,1.9551322,2430.8,2430.7,33.463]
[1751031702849,1.9551322,2430.8,2429.8,9.34938307]
[1751031702850,0.82299,2429.3,2429.2,3.13990206]